lending/lending_fUSD_20240219
["ID","MTS","AMOUNT","RATE_DAILY","PERIOD"]
[314488845,1708375982295,-795.16,0.00048874,15]
[314488846,1708375982304,-42109.17620993,0.000489,30]
[314488847,1708375982314,-155.64402528,0.00048904,48]
[314488848,1708375982324,-150.0,0.00048929,8]
[314488849,1708375982334,-150.0,0.00048929,8]
[314488850,1708375982343,-163.77965983,0.00048984,30]
[314488851,1708375982354,-200.0,0.00048987,77]
[314488852,1708375982364,-6209.66218602,0.0004899,14]
[314488853,1708375982373,-150.0,0.00048999,2]
[314488854,1708375982382,-100000.0,0.00049,39]
[314488855,1708375982392,-10000.000001,0.00049,24]
[314488856,1708375982402,-500.0,0.00049,120]
[314488857,1708375982412,-267893.10852846,0.00049,120]
[314488858,1708375982422,-630000.0,0.00049,120]
[314488859,1708375982432,-5000.0,0.00049,120]
[314488860,1708375982441,-5000.0,0.00049,120]
[314488861,1708375982452,-781.22291982,0.00049,2]
[314488862,1708375982463,-5033.0,0.00049,120]
[314488863,1708375982473,-300.0,0.00049,48]
[314488864,1708375982483,-30912.093047,0.00049,120]
[314488865,1708375982495,-718.2,0.00049,60]
[314488866,1708375982504,-1747.58092886,0.00049,2]
[314488867,1708375982514,-18492.63451391,0.00049,5]
[314488868,1708375982523,-168.60540113,0.00049,30]
[314488869,1708375982533,-32519.0,0.00049,120]
[314488870,1708375982543,-1856.0,0.00049,30]
[314488871,1708375982552,-671.36738062,0.00049,15]
[314488872,1708375982561,-5132.68902302,0.00049,120]
[314488873,1708375982571,-5000.0,0.00049,120]
[314488874,1708375982581,-10000.0,0.00049,120]
[314488875,1708375982590,-20000.0,0.00049,12]
[314488876,1708375982600,-123507.81708359,0.00049,14]
[314488877,1708375982609,-1250.0,0.00049,30]
[314488878,1708375982619,-862.0,0.00049,14]
[314488879,1708375982629,-159.40118299,0.00049,120]
[314488880,1708375982638,-150.0,0.00049,10]
[314488881,1708375982648,-1350.0,0.00049,3]
[314488882,1708375982658,-396.0,0.00049,39]
[314488883,1708375982668,-1057.16,0.00049,7]
[314488884,1708375982679,-648.0426603,0.00049,15]
[314488885,1708375982689,-211.82443069,0.00049033,30]
[314488886,1708375982699,-500.0,0.00049041,30]
[314488887,1708375982708,-618.34657379,0.00049041,30]
[314488888,1708375982717,-658.14,0.00049041,30]
[314488889,1708375982727,-500.0,0.00049041,30]
[314488890,1708375982737,-727.1,0.00049041,30]
[314488891,1708375982746,-500.0,0.00049041,30]
[314488892,1708375982755,-364.22373061,0.00049041,30]
[314488893,1708375982765,-611.49,0.00049041,30]
[314488894,1708375982775,-500.0,0.00049041,30]
[314488895,1708375982784,-500.0,0.00049041,30]
[314488896,1708375982793,-500.0,0.00049041,30]
[314488897,1708375982803,-500.0,0.00049041,30]
[314488898,1708375982813,-500.0,0.00049041,30]
[314488899,1708375982823,-557.31304868,0.00049041,30]
[314488900,1708375982833,-500.0,0.00049041,30]
[314488901,1708375982843,-642.69,0.00049041,30]
[314488902,1708375982853,-502.75,0.00049041,30]
[314488903,1708375982863,-507.80877399,0.00049041,30]
[314488904,1708375982872,-500.0,0.00049041,30]
[314488905,1708375982882,-680.66,0.00049041,30]
[314488906,1708375982892,-500.0,0.00049041,30]
[314488907,1708375982901,-500.0,0.00049041,30]
[314488908,1708375982911,-534.7,0.00049041,30]
[314488909,1708375982921,-500.0,0.00049041,30]
[314488910,1708375982930,-673.61,0.00049041,30]
[314488911,1708375982940,-500.0,0.00049041,30]
[314488912,1708375982949,-500.0,0.00049041,30]
[314488913,1708375982958,-500.0,0.00049041,30]
[314488914,1708375982968,-500.0,0.00049041,30]
[314488915,1708375982977,-500.0,0.00049041,30]
[314488916,1708375982987,-546.31,0.00049041,30]
[314488917,1708375982996,-203.68390601,0.00049041,30]
[314488918,1708375983006,-500.0,0.00049041,30]
[314488919,1708375983016,-500.0,0.00049041,30]
[314488920,1708375983025,-700.86,0.00049041,30]
[314488921,1708375983035,-500.0,0.00049041,30]
[314488922,1708375983045,-500.0,0.00049041,30]
[314488923,1708375983054,-500.0,0.00049041,30]
[314488924,1708375983063,-515.56,0.00049041,30]
[314488925,1708375983072,-150.0,0.00049041,30]
[314488926,1708375983082,-500.0,0.00049041,30]
[314488927,1708375983091,-500.0,0.00049041,30]
[314488928,1708375983102,-500.0,0.00049041,30]
[314488929,1708375983113,-500.0,0.00049041,30]
[314488930,1708375983124,-683.1,0.00049041,30]
[314488931,1708375983135,-500.0,0.00049041,30]
[314488932,1708375983145,-773.54,0.00049041,30]
[314488933,1708375983155,-500.0,0.00049041,30]
[314488934,1708375983164,-500.0,0.00049041,30]
[314488935,1708375983173,-500.0,0.00049041,30]
[314488936,1708375983182,-500.0,0.00049041,30]
[314488937,1708375983193,-635.49,0.00049041,30]
[314488938,1708375983203,-500.0,0.00049041,30]
[314488939,1708375983212,-605.14,0.00049041,30]
[314488940,1708375983221,-500.0,0.00049041,30]
[314488941,1708375983230,-500.0,0.00049041,30]
[314488942,1708375983240,-521.73,0.00049041,30]
[314488943,1708375983249,-500.0,0.00049041,30]
[314488944,1708375983258,-500.0,0.00049041,30]
[314488945,1708375983268,-503.75444088,0.00049041,30]
[314488946,1708375983278,-500.0,0.00049041,30]
[314488947,1708375983287,-500.0,0.00049041,30]
[314488948,1708375983297,-551.15,0.00049041,30]
[314488949,1708375983306,-500.0,0.00049041,30]
[314488950,1708375983315,-500.0,0.00049041,30]
[314488951,1708375983325,-500.0,0.00049041,30]
[314488952,1708375983335,-687.19,0.00049041,30]
[314488953,1708375983345,-606.33,0.00049041,30]
[314488954,1708375983355,-500.0,0.00049041,30]
[314488955,1708375983365,-796.73,0.00049041,30]
[314488956,1708375983375,-726.97,0.00049041,30]
[314488957,1708375983385,-500.0,0.00049041,30]
[314488958,1708375983395,-500.0,0.00049041,30]
[314488959,1708375983405,-500.0,0.00049041,30]
[314488960,1708375983415,-500.0,0.00049041,30]
[314488961,1708375983424,-500.0,0.00049041,30]
[314488962,1708375983434,-646.91,0.00049041,30]
[314488963,1708375983443,-834.56,0.00049041,30]
[314488964,1708375983453,-500.0,0.00049041,30]
[314488965,1708375983463,-664.56,0.00049041,30]
[314488966,1708375983473,-500.0,0.00049041,30]
[314488967,1708375983483,-500.0,0.00049041,30]
[314488968,1708375983493,-500.0,0.00049041,30]
[314488969,1708375983502,-500.0,0.00049041,30]
[314488970,1708375983511,-500.0,0.00049041,30]
[314488971,1708375983521,-500.0,0.00049041,30]
[314488972,1708375983531,-500.0,0.00049041,30]
[314488973,1708375983540,-500.0,0.00049041,30]
[314488974,1708375983550,-500.0,0.00049041,30]
[314488975,1708375983560,-500.0,0.00049041,30]
[314488976,1708375983570,-500.0,0.00049041,30]
[314488977,1708375983580,-205.25030685,0.00049041,30]
[314488978,1708375983590,-500.0,0.00049041,30]
[314488979,1708375983600,-558.22,0.00049041,30]
[314488980,1708375983610,-738.02,0.00049041,30]
[314488981,1708375983619,-500.0,0.00049041,30]
[314488982,1708375983629,-534.66,0.00049041,30]
[314488983,1708375983639,-1457.69,0.00049041,30]
[314488984,1708375983648,-500.0,0.00049041,30]
[314488985,1708375983658,-500.0,0.00049041,30]
[314488986,1708375983668,-500.0,0.00049041,30]
[314488987,1708375983678,-907.08,0.00049041,30]
[314488988,1708375983687,-500.0,0.00049041,30]
[314488989,1708375983696,-500.0,0.00049041,30]
[314488990,1708375983706,-500.0,0.00049041,30]
[314488991,1708375983715,-1101.19,0.00049041,30]
[314488992,1708375983725,-500.0,0.00049041,30]
[314488993,1708375983734,-500.0,0.00049041,30]
[314488994,1708375983744,-724.1,0.00049041,30]
[314488995,1708375983754,-500.0,0.00049041,30]
[314488996,1708375983764,-584.96,0.00049041,30]
[314488997,1708375983773,-532.99449994,0.00049041,30]
[314488998,1708375983782,-500.0,0.00049041,30]
[314488999,1708375983792,-794.09,0.00049041,30]
[314489000,1708375983801,-500.0,0.00049041,30]
[314489001,1708375983811,-596.62,0.00049041,30]
[314489002,1708375983821,-980.76,0.00049041,30]
[314489003,1708375983830,-725.56,0.00049041,30]
[314489004,1708375983841,-736.53,0.00049041,30]
[314489005,1708375983851,-364.23928617,0.00049041,30]
[314489006,1708375983861,-681.49,0.00049041,30]
[314489007,1708375983870,-529.85,0.00049041,30]
[314489008,1708375983880,-611.77,0.00049041,30]
[314489009,1708375983890,-500.0,0.00049041,30]
[314489010,1708375983900,-593.46,0.00049041,30]
[314489011,1708375983910,-623.19,0.00049041,30]
[314489012,1708375983919,-767.38,0.00049041,30]
[314489013,1708375983929,-1194.83,0.00049041,30]
[314489014,1708375983938,-658.06,0.00049041,30]
[314489015,1708375983948,-858.95,0.00049041,30]
[314489016,1708375983958,-500.0,0.00049041,30]
[314489017,1708375983967,-500.0,0.00049041,30]
[314489018,1708375983977,-500.0,0.00049041,30]
[314489019,1708375983987,-1684.76,0.00049041,30]
[314489020,1708375983997,-500.0,0.00049041,30]
[314489021,1708375984006,-1412.31,0.00049041,30]
[314489022,1708375984015,-500.0,0.00049041,30]
[314489023,1708375984025,-2000.0,0.00049041,30]
[314489024,1708375984035,-500.0,0.00049041,30]
[314489025,1708375984044,-500.0,0.00049041,30]
[314489026,1708375984053,-500.0,0.00049041,30]
[314489027,1708375984063,-1438.64,0.00049041,30]
[314489028,1708375984073,-525.84,0.00049041,30]
[314489029,1708375984083,-500.0,0.00049041,30]
[314489030,1708375984093,-500.0,0.00049041,30]
[314489031,1708375984106,-500.0,0.00049041,30]
[314489032,1708375984115,-519.41,0.00049041,30]
[314489033,1708375984125,-500.0,0.00049041,30]
[314489034,1708375984135,-500.0,0.00049041,30]
[314489035,1708375984145,-500.0,0.00049041,30]
[314489036,1708375984156,-1430.29,0.00049041,30]
[314489037,1708375984166,-500.0,0.00049041,30]
[314489038,1708375984177,-500.0,0.00049041,30]
[314489039,1708375984187,-500.0,0.00049041,30]
[314489040,1708375984197,-500.0,0.00049041,30]
[314489041,1708375984207,-1019.92,0.00049041,30]
[314489042,1708375984217,-329.93365906,0.00049041,30]
[314489043,1708375984226,-1105.45,0.00049041,30]
[314489044,1708375984237,-500.0,0.00049041,30]
[314489045,1708375984248,-500.0,0.00049041,30]
[314489046,1708375984258,-592.36,0.00049041,30]
[314489047,1708375984267,-500.0,0.00049041,30]
[314489048,1708375984277,-500.0,0.00049041,30]
[314489049,1708375984287,-1079.31,0.00049041,30]
[314489050,1708375984297,-500.0,0.00049041,30]
[314489051,1708375984306,-500.0,0.00049041,30]
[314489052,1708375984317,-1238.71,0.00049041,30]
[314489053,1708375984327,-500.0,0.00049041,30]
[314489054,1708375984336,-1695.98,0.00049041,2]
[314489055,1708375984346,-512.64,0.00049041,30]
[314489056,1708375984357,-500.0,0.00049041,30]
[314489057,1708375984367,-500.0,0.00049041,30]
[314489058,1708375984377,-626.83,0.00049041,30]
[314489059,1708375984387,-500.0,0.00049041,30]
[314489060,1708375984397,-500.0,0.00049041,30]
[314489061,1708375984408,-1225.04,0.00049041,30]
[314489062,1708375984418,-782.42,0.00049041,30]
[314489063,1708375984428,-500.0,0.00049041,2]
[314489064,1708375984437,-1117.49,0.00049041,30]
[314489065,1708375984448,-500.0,0.00049041,30]
[314489066,1708375984458,-540.29,0.00049041,30]
[314489067,1708375984468,-500.0,0.00049041,30]
[314489068,1708375984477,-609.39,0.00049041,30]
[314489069,1708375984488,-681.37,0.00049041,30]
[314489070,1708375984498,-500.0,0.00049041,30]
[314489071,1708375984606,-1341.5,0.00049041,30]
[314489072,1708375984617,-834.82,0.00049041,30]
[314489073,1708375984627,-500.0,0.00049041,30]
[314489074,1708375984638,-500.0,0.00049041,30]
[314489075,1708375984649,-526.87,0.00049041,30]
[314489076,1708375984660,-567.2,0.00049041,30]
[314489077,1708375984670,-500.0,0.00049041,30]
[314489078,1708375984681,-500.0,0.00049041,30]
[314489079,1708375984691,-500.0,0.00049041,30]
[314489080,1708375984700,-500.0,0.00049041,30]
[314489081,1708375984710,-500.0,0.00049041,30]
[314489082,1708375984719,-1134.32,0.00049041,30]
[314489083,1708375984729,-500.0,0.00049041,30]
[314489084,1708375984739,-826.41,0.00049041,30]
[314489085,1708375984749,-299.6108974,0.00049041,30]
[314489086,1708375984758,-1378.15,0.00049041,30]
[314489087,1708375984769,-1170.65,0.00049041,30]
[314489088,1708375984779,-1602.18,0.00049041,30]
[314489089,1708375984789,-500.0,0.00049041,30]
[314489090,1708375984798,-910.93,0.00049041,30]
[314489091,1708375984807,-730.4,0.00049041,30]
[314489092,1708375984816,-1022.68,0.00049041,30]
[314489093,1708375984826,-619.27,0.00049041,30]
[314489094,1708375984836,-500.0,0.00049041,30]
[314489095,1708375984846,-1234.7,0.00049041,30]
[314489096,1708375984856,-1015.68,0.00049041,30]
[314489097,1708375984866,-500.0,0.00049041,30]
[314489098,1708375984876,-500.0,0.00049041,30]
[314489099,1708375984886,-500.0,0.00049041,30]
[314489100,1708375984895,-500.0,0.00049041,30]
[314489101,1708375984905,-640.09,0.00049041,30]
[314489102,1708375984915,-1097.36,0.00049041,30]
[314489103,1708375984925,-500.0,0.00049041,30]
[314489104,1708375984934,-500.0,0.00049041,30]
[314489105,1708375984943,-586.6,0.00049041,30]
[314489106,1708375984953,-500.0,0.00049041,30]
[314489107,1708375984963,-500.0,0.00049041,30]
[314489108,1708375984973,-989.09,0.00049041,30]
[314489109,1708375984982,-500.0,0.00049041,30]
[314489110,1708375984991,-1358.39,0.00049041,30]
[314489111,1708375985000,-500.0,0.00049041,30]
[314489112,1708375985010,-546.18,0.00049041,30]
[314489113,1708375985021,-500.0,0.00049041,30]
[314489114,1708375985031,-1072.42,0.00049041,30]
[314489115,1708375985042,-500.0,0.00049041,30]
[314489116,1708375985053,-1139.87,0.00049041,30]
[314489117,1708375985064,-500.0,0.00049041,30]
[314489118,1708375985074,-368.75204984,0.00049041,30]
[314489119,1708375985084,-653.92,0.00049041,30]
[314489120,1708375985098,-500.0,0.00049041,30]
[314489121,1708375985113,-1319.89,0.00049041,30]
[314489122,1708375985123,-500.0,0.00049041,30]
[314489123,1708375985133,-1138.49,0.00049041,30]
[314489124,1708375985144,-500.0,0.00049041,30]
[314489125,1708375985155,-500.0,0.00049041,30]
[314489126,1708375985166,-701.86,0.00049041,30]
[314489127,1708375985178,-821.67,0.00049041,30]
[314489128,1708375985190,-500.0,0.00049041,30]
[314489129,1708375985201,-546.51,0.00049041,30]
[314489130,1708375985211,-500.0,0.00049041,30]
[314489131,1708375985221,-500.0,0.00049041,30]
[314489132,1708375985231,-555.68,0.00049041,30]
[314489133,1708375985241,-791.29,0.00049041,30]
[314489134,1708375985252,-500.0,0.00049041,30]
[314489135,1708375985262,-500.0,0.00049041,30]
[314489136,1708375985273,-517.1,0.00049041,30]
[314489137,1708375985283,-817.72,0.00049041,30]
[314489138,1708375985294,-1096.08,0.00049041,30]
[314489139,1708375985304,-500.0,0.00049041,30]
[314489140,1708375985315,-1231.27,0.00049041,30]
[314489141,1708375985326,-882.89,0.00049041,30]
[314489142,1708375985336,-500.0,0.00049041,30]
[314489143,1708375985346,-633.3,0.00049041,30]
[314489144,1708375985356,-500.0,0.00049041,30]
[314489145,1708375985366,-500.0,0.00049041,30]
[314489146,1708375985377,-1075.43,0.00049041,30]
[314489147,1708375985389,-1081.85,0.00049041,30]
[314489148,1708375985400,-500.0,0.00049041,30]
[314489149,1708375985410,-182.39624329,0.00049041,30]
[314489150,1708375985420,-569.42,0.00049041,30]
[314489151,1708375985431,-1092.13,0.00049041,30]
[314489152,1708375985441,-500.0,0.00049041,30]
[314489153,1708375985453,-537.66,0.00049041,30]
[314489154,1708375985465,-500.0,0.00049041,30]
[314489155,1708375985477,-500.0,0.00049041,30]
[314489156,1708375985489,-500.0,0.00049041,30]
[314489157,1708375985502,-686.43,0.00049041,30]
[314489158,1708375985514,-988.65,0.00049041,30]
[314489159,1708375985526,-500.0,0.00049041,30]
[314489160,1708375985537,-1169.05,0.00049041,30]
[314489161,1708375985550,-696.77,0.00049041,30]
[314489162,1708375985562,-1548.35,0.00049041,30]
[314489163,1708375985574,-500.0,0.00049041,30]
[314489164,1708375985586,-823.36,0.00049041,30]
[314489165,1708375985599,-544.54848899,0.00049041,30]
[314489166,1708375985620,-335.51,0.00049041,30]
[314489167,1708375985636,-879.35,0.00049041,30]
[314489168,1708375985648,-500.0,0.00049041,30]
[314489169,1708375985658,-971.92,0.00049041,30]
[314489170,1708375985669,-1247.38,0.00049041,30]
[314489171,1708375985681,-1398.42,0.00049041,30]
[314489172,1708375985694,-701.34,0.00049041,30]
[314489173,1708375985704,-500.0,0.00049041,30]
[314489174,1708375985716,-926.08,0.00049041,30]
[314489175,1708375985727,-1439.25,0.00049041,30]
[314489176,1708375985738,-730.11,0.00049041,30]
[314489177,1708375985748,-534.4926768,0.00049041,30]
[314489178,1708375985759,-642.65,0.00049041,30]
[314489179,1708375985769,-1058.32,0.00049041,30]
[314489180,1708375985780,-909.21,0.00049041,30]
[314489181,1708375985790,-960.6,0.00049041,30]
[314489182,1708375985801,-500.0,0.00049041,30]
[314489183,1708375985811,-529.3,0.00049041,30]
[314489184,1708375985821,-500.0,0.00049041,30]
[314489185,1708375985838,-500.0,0.00049041,30]
[314489186,1708375985848,-747.42,0.00049041,30]
[314489187,1708375985860,-830.98,0.00049041,30]
[314489188,1708375985870,-1206.67,0.00049041,30]
[314489189,1708375985881,-244.17530703,0.00049041,30]
[314489190,1708375985892,-500.0,0.00049041,30]
[314489191,1708375985903,-1598.54,0.00049041,30]
[314489192,1708375985914,-642.68,0.00049041,30]
[314489193,1708375985925,-500.0,0.00049041,30]
[314489194,1708375985937,-542.13,0.00049041,30]
[314489195,1708375985947,-921.92,0.00049041,30]
[314489196,1708375985957,-751.64,0.00049041,30]
[314489197,1708375985968,-905.09,0.00049041,30]
[314489198,1708375985978,-752.52,0.00049041,30]
[314489199,1708375985988,-500.0,0.00049041,30]
[314489200,1708375985998,-811.75,0.00049041,30]
[314489201,1708375986007,-565.99,0.00049041,30]
[314489202,1708375986017,-1432.15,0.00049041,30]
[314489203,1708375986027,-694.07,0.00049041,30]
[314489204,1708375986037,-500.0,0.00049041,30]
[314489205,1708375986047,-1105.31,0.00049041,30]
[314489206,1708375986057,-724.85,0.00049041,30]
[314489207,1708375986066,-500.0,0.00049041,30]
[314489208,1708375986075,-1212.7,0.00049041,30]
[314489209,1708375986085,-892.85,0.00049041,30]
[314489210,1708375986098,-500.0,0.00049041,30]
[314489211,1708375986109,-869.25,0.00049041,30]
[314489212,1708375986123,-500.0,0.00049041,30]
[314489213,1708375986133,-500.0,0.00049041,30]
[314489214,1708375986143,-500.0,0.00049041,30]
[314489215,1708375986154,-567.89,0.00049041,30]
[314489216,1708375986164,-1168.13,0.00049041,30]
[314489217,1708375986174,-1054.03,0.00049041,30]
[314489218,1708375986183,-810.5,0.00049041,30]
[314489219,1708375986194,-549.4854619,0.00049041,30]
[314489220,1708375986205,-500.0,0.00049041,30]
[314489221,1708375986215,-500.0,0.00049041,30]
[314489222,1708375986226,-822.31,0.00049041,30]
[314489223,1708375986236,-500.0,0.00049041,30]
[314489224,1708375986245,-1261.76,0.00049041,30]
[314489225,1708375986256,-500.0,0.00049041,30]
[314489226,1708375986265,-743.59,0.00049041,30]
[314489227,1708375986275,-929.31,0.00049041,30]
[314489228,1708375986284,-500.0,0.00049041,30]
[314489229,1708375986294,-516.11,0.00049041,30]
[314489230,1708375986661,-1169.76,0.00049041,30]
[314489231,1708375986674,-655.79,0.00049041,30]
[314489232,1708375986686,-500.0,0.00049041,30]
[314489233,1708375986697,-500.0,0.00049041,30]
[314489234,1708375986708,-1155.7,0.00049041,30]
[314489235,1708375986719,-500.0,0.00049041,30]
[314489236,1708375986729,-1079.22,0.00049041,30]
[314489237,1708375986740,-531.84,0.00049041,30]
[314489238,1708375986750,-1189.04,0.00049041,30]
[314489239,1708375986761,-817.13,0.00049041,30]
[314489240,1708375986772,-500.0,0.00049041,30]
[314489241,1708375986783,-500.0,0.00049041,30]
[314489242,1708375986795,-954.22,0.00049041,30]
[314489243,1708375986806,-500.0,0.00049041,30]
[314489244,1708375986816,-1014.4,0.00049041,30]
[314489245,1708375986827,-1091.86,0.00049041,30]
[314489246,1708375986838,-623.17,0.00049041,30]
[314489247,1708375986847,-976.49,0.00049041,30]
[314489248,1708375986858,-500.0,0.00049041,30]
[314489249,1708375986868,-500.0,0.00049041,30]
[314489250,1708375986878,-500.0,0.00049041,30]
[314489251,1708375986889,-980.87,0.00049041,30]
[314489252,1708375986899,-500.0,0.00049041,30]
[314489253,1708375986909,-500.0,0.00049041,30]
[314489254,1708375986920,-500.0,0.00049041,30]
[314489255,1708375986930,-500.0,0.00049041,30]
[314489256,1708375986940,-500.0,0.00049041,30]
[314489257,1708375986951,-500.0,0.00049041,30]
[314489258,1708375986961,-500.0,0.00049041,30]
[314489259,1708375986971,-595.90686488,0.00049041,30]
[314489260,1708375986981,-1000.0,0.00049041,7]
[314489261,1708375986991,-893.6,0.00049041,30]
[314489262,1708375987002,-500.0,0.00049041,30]
[314489263,1708375987012,-500.0,0.00049041,30]
[314489264,1708375987022,-500.0,0.00049041,30]
[314489265,1708375987032,-641.69,0.00049041,30]
[314489266,1708375987042,-500.0,0.00049041,30]
[314489267,1708375987051,-500.0,0.00049041,30]
[314489268,1708375987061,-500.0,0.00049041,30]
[314489269,1708375987070,-500.0,0.00049041,30]
[314489270,1708375987080,-1098.68,0.00049041,30]
[314489271,1708375987092,-500.0,0.00049041,30]
[314489272,1708375987106,-500.0,0.00049041,30]
[314489273,1708375987116,-500.0,0.00049041,30]
[314489274,1708375987126,-783.48,0.00049041,30]
[314489275,1708375987136,-500.0,0.00049041,30]
[314489276,1708375987147,-167.3726623,0.00049041,30]
[314489277,1708375987157,-500.0,0.00049041,30]
[314489278,1708375987167,-1291.14,0.00049041,30]
[314489279,1708375987178,-1226.84,0.00049041,30]
[314489280,1708375987189,-500.0,0.00049041,30]
[314489281,1708375987199,-500.0,0.00049041,30]
[314489282,1708375987210,-764.49,0.00049041,30]
[314489283,1708375987219,-500.0,0.00049041,30]
[314489284,1708375987229,-493.4117972,0.00049041,30]
[314489285,1708375987239,-625.5,0.00049041,30]
[314489286,1708375987249,-500.0,0.00049041,30]
[314489287,1708375987259,-871.41,0.00049041,30]
[314489288,1708375987268,-500.0,0.00049041,30]
[314489289,1708375987278,-937.75,0.00049041,30]
[314489290,1708375987288,-500.0,0.00049041,30]
[314489291,1708375987298,-500.0,0.00049041,30]
[314489292,1708375987308,-2580.06,0.00049041,30]
[314489293,1708375987319,-500.0,0.00049041,30]
[314489294,1708375987330,-874.69,0.00049041,30]
[314489295,1708375987340,-500.0,0.00049041,30]
[314489296,1708375987350,-500.0,0.00049041,30]
[314489297,1708375987361,-580.6,0.00049041,30]
[314489298,1708375987371,-742.82,0.00049041,30]
[314489299,1708375987382,-1385.86,0.00049041,30]
[314489300,1708375987392,-626.34,0.00049041,30]
[314489301,1708375987401,-1122.0,0.00049041,30]
[314489302,1708375987412,-673.8,0.00049041,30]
[314489303,1708375987422,-948.86,0.00049041,30]
[314489304,1708375987432,-500.0,0.00049041,30]
[314489305,1708375987442,-500.0,0.00049041,30]
[314489306,1708375987452,-500.0,0.00049041,30]
[314489307,1708375987462,-500.0,0.00049041,30]
[314489308,1708375987472,-500.0,0.00049041,30]
[314489309,1708375987487,-578.21389318,0.00049041,30]
[314489310,1708375987498,-681.52,0.00049041,30]
[314489311,1708375987508,-1101.95,0.00049041,30]
[314489312,1708375987518,-500.0,0.00049041,30]
[314489313,1708375987528,-500.0,0.00049041,30]
[314489314,1708375987538,-981.09,0.00049041,30]
[314489315,1708375987548,-1174.33,0.00049041,30]
[314489316,1708375987558,-4511.29,0.00049041,30]
[314489317,1708375987568,-2077.3,0.00049041,30]
[314489318,1708375987578,-250.0,0.00049041,30]
[314489319,1708375987588,-1043.21,0.00049041,30]
[314489320,1708375987598,-500.0,0.00049041,30]
[314489321,1708375987608,-888.3,0.00049041,30]
[314489322,1708375987619,-610.38,0.00049041,30]
[314489323,1708375987628,-500.0,0.00049041,30]
[314489324,1708375987639,-3093.94,0.00049041,30]
[314489325,1708375987649,-1342.73,0.00049041,30]
[314489326,1708375987659,-500.0,0.00049041,30]
[314489327,1708375987673,-500.0,0.00049041,30]
[314489328,1708375987684,-4450.76,0.00049041,30]
[314489329,1708375987693,-214.99225434,0.00049041,30]
[314489330,1708375987704,-2986.67,0.00049041,30]
[314489331,1708375987713,-927.23,0.00049041,30]
[314489332,1708375987723,-500.0,0.00049041,30]
[314489333,1708375987733,-500.0,0.00049041,30]
[314489334,1708375987743,-4576.97,0.00049041,30]
[314489335,1708375987753,-500.0,0.00049041,30]
[314489336,1708375987762,-1346.18,0.00049041,30]
[314489337,1708375987772,-2880.36,0.00049041,30]
[314489338,1708375987782,-500.0,0.00049041,30]
[314489339,1708375987791,-540.25,0.00049041,30]
[314489340,1708375987801,-942.11,0.00049041,30]
[314489341,1708375987811,-802.39,0.00049041,30]
[314489342,1708375987820,-500.0,0.00049041,30]
[314489343,1708375987830,-3501.98,0.00049041,30]
[314489344,1708375987839,-3067.49,0.00049041,30]